{"text_format":"1","workbook":"xlsx","n_sheets":2,"sheets":["Factura","Ayuda"],"not_rendered":{"charts":0,"images":3,"macros":1,"external_links":0,"defined_names":2,"comments":0,"pivot_tables":0},"unopened":[],"bounds":{"document_bytes":16777216,"sheet_cells":100000,"rows_first":2000,"rows_last":500,"rows_between":2000,"halvings":0,"cell_chars":16384,"cell_head_chars":4096},"cells_cut":0,"cells_raw":0,"read":"whole","date_system":"1900"}

{"sheet":"Factura","index":0,"n_rows":38,"n_cols":10,"rows_kept":38,"cut":false,"hidden":false,"merged":[[5,7,7,7],[29,0,29,2],[21,0,21,2],[22,0,22,2],[23,0,23,2],[25,0,25,2],[26,0,26,2],[0,4,0,5],[34,0,34,2],[31,0,31,2],[32,0,32,2],[33,0,33,2],[24,0,24,2],[14,0,14,2],[15,0,15,2],[16,0,16,2],[17,0,17,2],[18,0,18,2],[19,0,19,2],[20,0,20,2],[27,0,27,2],[28,0,28,2]]}
["Ingeniería",null,"B",null,"FACTURA"]
["Italia, 945"]
["Buenos Aires, CP 1712",null,null,null,"NRO","0230-00001385","← 2) No modificar este valor. Se obtiene de AFIP"]
["Teléfono: +54(11) 2092-3168",null,null,null,"FECHA",{"$f":"TODAY()","v":"2021-04-15"}]
["Cel: +54(911) 6937-5707",null,null,null,"CUIT","20-93980259-3"]
["www.bitingenieria.com.ar"]
[null,null,null,null,null,null,null,null,null,"← 2) Obtener CAE y general con el mismo el comprobante en PDF"]
["CLIENTE"]
[27929007862]
["ROSSELLI MENDEZ KAREN"]
["ITALIA 945, CASTELAR"]
["Buenos Aires"]
["IVA Responsable Inscripto"]
["DESCRIPCION",null,null,"CANTIDAD","PRECIO","MONTO"]
["Mouse Inalambrico",null,null,2,199,{"$f":"E15*D15","v":398}]
["Teclado Inalambrico",null,null,4,568,{"$f":"E16*D16","v":2272}]
[null,null,null,null,null,0]
[null,null,null,null,null,0]
[null,null,null,null,null,0]
[null,null,null,null,null,0]
[null,null,null,null,null,0]
[null,null,null,null,null,0]
[null,null,null,null,null,0]
[null,null,null,null,null,0]
[null,null,null,null,null,0]
[null,null,null,null,null,0]
[null,null,null,null,null,0]
[null,null,null,null,null,0]
[null,null,null,null,null,0]
[null,null,null,null,null,0]
[null,null,null,"[42]","Subtotal",{"$f":"SUM(F15:F30)","v":2670}]
["Comentarios",null,null,null,"IVA %",0.21]
[null,null,null,null,"IVA",{"$f":"IF(C1=\"A\",F31*F32,F31-F31/(F32 + 1))","v":463.38842975206626}]
[]
[null,null,null,null,"TOTAL",{"$f":"IF(C1=\"A\",F31+F33,F31)","v":2670}]
[]
[null,null,null,null,"CAE: 71153928340622"]
[null,null,null,null,"VTO: 20210425"]

{"sheet":"Ayuda","index":1,"n_rows":10,"n_cols":2,"rows_kept":10,"cut":false,"hidden":false,"merged":[]}
["Ayuda"]
["https://www.bitingenieria.com.ar/invoice-template.xlsm"]
[]
["Introducción"]
[null,"Ejemplo de generación de factura electrónica para AFIP desde Excel"]
[null,"El ejemplo es un caso básico de emision de un comprobante. Puede modificarse y ajustarse para trabajo por lotes. "]
[]
["Requisitos"]
[null,"Debe tener instalada la dll FEAFIP desarrollada por Bit Ingeniería"]
[null,"https://www.bitingenieria.com.ar/feafip.zip"]